bitfinex/quotes_ETHUSD_20250523
["timestamp","ask_amount","ask_price","bid_price","bid_amount"]
[1748040169493,13.5463839,2539.2,2539.1,15.636]
[1748040170607,14.0963839,2539.2,2539.1,0.05]
[1748040170814,13.5463839,2539.2,2539.1,0.05]
[1748040174695,14.0963839,2539.2,2539.1,0.05]
[1748040177716,15.80201928,2539.2,2539.1,0.05]
[1748040180281,27.05801928,2539.2,2539.1,0.05]
[1748040181024,25.3523839,2539.2,2539.1,0.05]
[1748040181321,27.05801928,2539.2,2539.1,0.05]
[1748040182614,13.5463839,2539.2,2539.1,0.05]
[1748040182818,15.25201928,2539.2,2539.1,0.05]
[1748040192191,13.5463839,2539.2,2539.1,0.05]
[1748040192392,27.05801928,2539.2,2539.1,0.05]
[1748040196594,27.60801928,2539.2,2539.1,0.05]
[1748040197229,8.55,2539.1,2538.1,0.05]
[1748040197442,5.64543523,2538.2,2538.1,0.05]
[1748040197730,5.64543523,2538.2,2538.1,15.628]
[1748040198297,3.93979985,2538.2,2538.1,15.628]
[1748040199633,5.64543523,2538.2,2538.1,15.628]
[1748040199833,6.68705603,2538.2,2538.1,0.05]
[1748040200138,6.68705603,2538.2,2538.1,15.629]
[1748040200476,14.68705603,2538.2,2538.1,0.05]
[1748040200753,3.94119733,2537.3,2537.2,15.579]
[1748040201354,3.94119733,2537.3,2537.2,27.386]
[1748040202257,3.94119733,2537.3,2537.2,15.579]
[1748040202665,3.94135267,2537.2,2537.1,0.05]
[1748040202823,3.94135267,2537.2,2537.1,15.63]
[1748040203760,3.94135267,2537.2,2537.1,0.05]
[1748040204062,3.94135267,2537.2,2537.1,15.63]
[1748040205021,3.94135267,2537.2,2537.1,15.631]
[1748040207779,3.94135267,2537.2,2537.1,17.1941]
[1748040207969,3.94130807,2537.3,2537.1,17.1941]
[1748040208134,3.94130807,2537.3,2537.2,11.81]
[1748040208666,3.94073139,2537.6,2537.2,11.81]
[1748040208853,3.94097927,2537.5,2537.2,11.81]
[1748040209053,3.94087089,2537.6,2537.3,2.67176188]
[1748040209258,3.94104201,2537.4,2537.3,2.67176188]
[1748040210184,3.94104201,2537.4,2537.3,14.48176188]
[1748040210869,3.94065476,2537.7,2537.3,14.48176188]
[1748040211181,3.94081429,2537.6,2537.4,1.44817619]
[1748040212051,3.94088669,2537.5,2537.4,1.44817619]
[1748040213383,3.94135267,2537.2,2537.1,0.05]
[1748040213572,3.94135267,2537.2,2537.1,27.442]
[1748040213781,3.94135267,2537.2,2537.1,35.442]
[1748040213980,3.94135267,2537.2,2537.1,8.05]
[1748040214197,3.94135267,2537.2,2537.1,23.632]
[1748040215301,3.94135267,2537.2,2537.1,15.632]
[1748040216096,3.94135267,2537.2,2537.1,18.3762]
[1748040217399,3.94135267,2537.2,2537.1,15.632]
[1748040219512,3.94135267,2537.2,2537.1,0.05]
[1748040219799,3.94135267,2537.2,2537.1,15.622]
[1748040223405,3.94135267,2537.2,2537.1,0.05]
[1748040223702,3.94135267,2537.2,2537.1,15.622]
[1748040225795,3.94135267,2537.2,2537.1,0.05]
[1748040225997,3.94135267,2537.2,2537.1,15.623]
[1748040227167,3.94135267,2537.2,2537.1,0.05]
[1748040227372,3.94135267,2537.2,2537.1,15.623]
[1748040228412,4.80702917,2537.2,2537.1,15.623]
[1748040229631,5.58522917,2537.2,2537.1,0.05]
[1748040229931,5.58522917,2537.2,2537.1,15.623]
[1748040230277,5.58522917,2537.2,2537.1,0.05]
[1748040230519,14.13522917,2537.2,2537.1,0.05]
[1748040231416,6.45420952,2536.8,2536.7,14.169]
[1748040232407,3.94197414,2536.8,2536.7,14.169]
[1748040237429,4.84197414,2536.8,2536.7,14.169]
[1748040238232,4.84197414,2536.8,2536.7,42.969]
[1748040239409,3.94197414,2536.8,2536.7,42.969]
[1748040239908,3.94197414,2536.8,2536.7,58.546]
[1748040240129,4.98157959,2536.8,2536.7,58.546]
[1748040240435,3.94197414,2536.8,2536.7,58.546]
[1748040240829,3.94197414,2536.8,2536.7,58.596]
[1748040241809,3.94197414,2536.8,2536.7,43.019]
[1748040242012,3.94197414,2536.8,2536.7,70.411]
[1748040242835,3.94190054,2536.9,2536.8,0.05]
[1748040243511,3.94190054,2536.9,2536.8,27.442]
[1748040243943,3.94190054,2536.9,2536.8,0.05]
[1748040244124,4.69827414,2536.8,2536.7,42.969]
[1748040244439,4.69827414,2536.8,2536.7,58.545]
[1748040245196,4.69827414,2536.8,2536.7,42.969]
[1748040245444,6.12702401,2536.8,2536.7,58.545]
[1748040249118,6.92702401,2536.8,2536.7,58.545]
[1748040250240,14.92702401,2536.8,2536.7,58.545]
[1748040252445,16.63265939,2536.8,2536.7,28.8]
[1748040253507,18.74302401,2536.8,2536.7,28.8]
[1748040253707,6.17072401,2536.8,2536.7,28.8]
[1748040255948,6.17072401,2536.8,2536.7,44.367]
[1748040257939,8.67335939,2536.8,2536.7,44.367]
[1748040258143,8.67335939,2536.8,2536.7,28.8]
[1748040258345,8.67335939,2536.8,2536.7,44.367]
[1748040258947,8.67335939,2536.8,2536.7,28.8]
[1748040259162,9.57335939,2536.8,2536.7,44.367]
[1748040260745,9.57335939,2536.8,2536.7,28.8]
[1748040261446,8.67335939,2536.8,2536.7,28.8]
[1748040262311,6.96772401,2536.8,2536.7,28.8]
[1748040262510,4.74197414,2536.8,2536.7,28.85]
[1748040263249,4.74197414,2536.8,2536.7,44.417]
[1748040263749,4.74197414,2536.8,2536.7,28.8]
[1748040264107,4.74197414,2536.8,2536.7,44.367]
[1748040264941,4.74197414,2536.8,2536.7,28.8]
[1748040265109,4.74197414,2536.8,2536.7,44.367]
[1748040266436,6.80403047,2536.8,2536.7,44.367]
[1748040266638,6.80403047,2536.8,2536.7,28.8]
[1748040270963,14.80403047,2536.8,2536.7,28.8]
[1748040272016,15.70403047,2536.8,2536.7,28.8]
[1748040278163,16.25403047,2536.8,2536.7,28.8]
[1748040278457,19.8063212,2536.8,2536.7,28.8]
[1748040281433,22.1683212,2536.8,2536.7,28.8]
[1748040281635,41.8653212,2536.8,2536.7,7.77011232]
[1748040281834,41.8653212,2536.8,2536.7,6.63669523]
[1748040282233,41.8653212,2536.8,2536.7,6.24259523]
[1748040283244,4.49290671,2536.2,2536.1,0.05]
[1748040283450,29.74088811,2536.2,2536.1,0.05]
[1748040285177,3.94399526,2535.5,2535.4,15.554]
[1748040285376,23.76199526,2535.5,2535.4,15.554]
[1748040286080,3.94446197,2535.2,2535.1,15.607]
[1748040286372,3.94446197,2535.2,2535.1,0.05]
[1748040288876,11.94446197,2535.2,2535.1,0.05]
[1748040289840,11.94446197,2535.2,2535.1,0.8182]
[1748040292662,11.94446197,2535.2,2535.1,16.3782]
[1748040292856,11.94446197,2535.2,2535.1,0.05]
[1748040293058,11.94446197,2535.2,2535.1,15.61]
[1748040293258,11.94446197,2535.2,2535.1,1.03823963]
[1748040293584,11.94446197,2535.2,2535.1,15.61]
[1748040295876,11.94446197,2535.2,2535.1,16.4116]
[1748040298708,11.94446197,2535.2,2535.1,16.4126]
[1748040299297,11.94446197,2535.2,2535.1,0.05]
[1748040299489,11.94446197,2535.2,2535.1,15.611]
[1748040300556,3.94446197,2535.2,2535.1,15.611]
[1748040304065,3.94446197,2535.2,2535.1,16.4118]
[1748040304576,3.94446197,2535.2,2535.1,0.8508]
[1748040304893,3.94446197,2535.2,2535.1,16.4118]
[1748040308468,3.94446197,2535.2,2535.1,31.29408]
[1748040313822,3.94446197,2535.2,2535.1,0.05]
[1748040314113,3.94446197,2535.2,2535.1,15.592]
[1748040316514,14.48191348,2535.2,2535.1,0.05]
[1748040318721,24.59406197,2535.2,2535.1,0.05]
[1748040319709,25.49406197,2535.2,2535.1,0.05]
[1748040320035,29.44405506,2535.2,2535.1,0.05]
[1748040320220,17.62205506,2535.2,2535.1,0.05]
[1748040320418,25.49776197,2535.2,2535.1,0.05]
[1748040321837,4.84446197,2535.2,2535.1,0.05]
[1748040322330,12.84446197,2535.2,2535.1,0.05]
[1748040323435,4.84446197,2535.2,2535.1,0.05]
[1748040324746,3.94446197,2535.2,2535.1,0.8065]
[1748040325055,3.94446197,2535.2,2535.1,3.95649309]
[1748040325462,3.94586276,2534.3,2534.2,0.46819717]
[1748040325610,3.94586276,2534.3,2534.2,16.01319717]
[1748040326973,3.94586276,2534.3,2534.2,15.545]
[1748040327756,3.94586276,2534.3,2534.1,14.238]
[1748040327757,3.94601846,2534.2,2534.1,14.238]
[1748040327952,3.94601846,2534.2,2534.1,29.784]
[1748040328125,3.94601846,2534.2,2534.1,30.5519]
[1748040328329,3.94601846,2534.2,2534.1,34.50189309]
[1748040328728,0.8303,2534.8,2534.2,0.7679]
[1748040328729,3.94518133,2534.8,2534.2,0.7679]
[1748040328916,3.94570707,2534.4,2534.3,12.5919]
[1748040329111,3.94570707,2534.4,2534.3,16.54189309]
[1748040329326,3.94570707,2534.4,2534.3,4.71789309]
[1748040329528,3.94557575,2534.5,2534.1,0.05]
[1748040329529,3.94601846,2534.2,2534.1,0.05]
[1748040331215,3.94601846,2534.2,2534.1,15.597]
[1748040332959,4.71571846,2534.2,2534.1,15.597]
[1748040333461,3.94601846,2534.2,2534.1,0.05]
[1748040333663,4.71571846,2534.2,2534.1,0.05]
[1748040333862,16.47423053,2534.2,2534.1,0.05]
[1748040335180,17.37423053,2534.2,2534.1,0.05]
[1748040335659,15.66437902,2534.2,2534.1,0.05]
[1748040336171,4.71571846,2534.2,2534.1,0.05]
[1748040336358,15.77101846,2534.2,2534.1,0.05]
[1748040336765,15.77301846,2534.2,2534.1,0.05]
[1748040337080,3.94601846,2534.2,2534.1,0.05]
[1748040337884,3.94601846,2534.2,2534.1,14.242]
[1748040338049,3.94601846,2534.2,2534.1,17.30292]
[1748040338546,3.94601846,2534.2,2534.1,18.12112]
[1748040342580,3.94601846,2534.2,2534.1,15.0602]
[1748040345402,3.94601846,2534.2,2534.1,14.242]
[1748040349326,3.94601846,2534.2,2534.1,15.0525]
[1748040360652,3.94601846,2534.2,2534.1,30.5875]
[1748040361212,3.94601846,2534.2,2534.1,29.777]
[1748040363848,5.5387073,2534.2,2534.1,29.777]
[1748040364064,17.3647073,2534.2,2534.1,0.05]
[1748040364629,25.3647073,2534.2,2534.1,0.05]
[1748040364935,4.75107618,2533.2,2533.1,0.05]
[1748040365172,18.28773242,2533.2,2533.1,0.05]
[1748040365349,16.57707618,2533.2,2533.1,0.05]
[1748040366448,18.28773242,2533.2,2533.1,0.05]
[1748040366798,16.57707618,2533.2,2533.1,0.05]
[1748040366933,4.75107618,2533.2,2533.1,0.05]
[1748040367499,16.57707618,2533.2,2533.1,0.05]
[1748040368285,4.75107618,2533.2,2533.1,0.05]
[1748040370833,3.94757618,2533.2,2533.1,15.584]
[1748040371689,3.94757618,2533.2,2533.1,0.05]
[1748040371892,3.94757618,2533.2,2533.1,15.584]
[1748040372394,5.48787822,2533.2,2533.1,0.05]
[1748040372786,3.94913513,2532.2,2532.0,0.46819717]
[1748040373369,3.94913513,2532.2,2532.1,15.585]
[1748040373591,3.94913513,2532.2,2532.1,17.02756722]
[1748040373908,3.94913513,2532.2,2532.1,15.585]
[1748040375175,3.94913513,2532.2,2532.1,16.3742]
[1748040376295,3.94913513,2532.2,2532.1,15.587]
[1748040377572,4.70583513,2532.2,2532.1,0.05]
[1748040379678,3.94913513,2532.2,2532.1,0.05]
[1748040379876,5.63676699,2532.2,2532.1,0.05]
[1748040380673,17.19996664,2532.2,2532.1,0.05]
[1748040381210,5.63676699,2532.2,2532.1,0.05]
[1748040381376,13.63676699,2532.2,2532.1,0.05]
[1748040381803,14.18676699,2532.2,2532.1,0.05]
[1748040381980,15.08676699,2532.2,2532.1,0.05]
[1748040382313,15.08676699,2532.2,2531.1,0.05]
[1748040382314,4.73329532,2531.2,2531.1,0.05]
[1748040382991,4.73329532,2531.2,2531.1,16.165]
[1748040383914,3.95069532,2531.2,2531.1,16.165]
[1748040388123,4.73329532,2531.2,2531.1,16.165]
[1748040388320,12.73329532,2531.2,2531.1,0.05]
[1748040388538,14.75799874,2531.2,2531.1,0.05]
[1748040389618,4.73329532,2531.2,2531.1,0.05]
[1748040389818,3.95069532,2531.2,2531.1,0.05]
[1748040391437,4.73329532,2531.2,2531.1,0.05]
[1748040394005,8.29649497,2531.2,2531.1,0.05]
[1748040394610,16.29649497,2531.2,2531.1,0.05]
[1748040394953,6.75799874,2531.2,2531.1,0.05]
[1748040395108,4.73329532,2531.2,2531.1,0.05]
[1748040395810,5.63329532,2531.2,2531.1,0.05]
[1748040396321,16.54529532,2531.2,2531.1,0.05]
[1748040396643,16.54529532,2531.2,2530.1,0.05]
[1748040396644,3.95225673,2530.2,2530.1,0.05]
[1748040396869,3.95225673,2530.2,2530.1,16.175]
[1748040398670,3.95225673,2530.2,2530.1,0.05]
[1748040399178,3.95225673,2530.2,2530.1,0.8622]
[1748040399356,3.95225673,2530.2,2530.1,16.9872]
[1748040400623,3.95225673,2530.2,2530.1,16.175]
[1748040407279,3.95180496,2530.5,2530.1,20.0298]
[1748040407484,3.95195653,2530.4,2530.1,20.0298]
[1748040407780,3.95191879,2530.5,2530.1,20.0298]
[1748040407981,3.95176285,2530.6,2530.2,0.8163]
[1748040408183,3.9518125,2530.5,2530.2,0.8163]
[1748040408381,3.95106735,2531.0,2530.3,2.00298]
[1748040408382,3.95194435,2530.4,2530.3,2.00298]
[1748040410007,3.95060126,2531.3,2530.4,0.8163]
[1748040410310,0.7931,2531.4,2530.4,12.6603]
[1748040410311,3.95154986,2530.7,2530.4,12.6603]
[1748040410685,3.95178818,2530.5,2530.4,12.6603]
[1748040413410,3.95225673,2530.2,2530.1,16.413]
[1748040420523,3.95225673,2530.2,2530.1,0.05]
[1748040420697,3.95225673,2530.2,2530.1,16.415]
[1748040421301,3.95225673,2530.2,2530.1,0.05]
[1748040421507,5.13788946,2530.2,2530.1,16.415]
[1748040422528,5.13788946,2530.2,2530.1,0.05]
[1748040422693,5.13788946,2530.2,2530.1,16.415]
[1748040422888,3.95225673,2530.2,2530.1,16.415]
[1748040424624,4.70478928,2531.1,2530.2,0.7805]
[1748040424813,3.95205532,2530.4,2530.2,0.7805]
[1748040425019,3.95203936,2530.4,2530.2,0.7805]
[1748040425349,3.95210054,2530.3,2530.2,0.7805]
[1748040425514,3.95210054,2530.3,2530.2,3.68465]
[1748040426214,3.95210054,2530.3,2530.2,17.1465]
[1748040427252,3.95129155,2530.9,2530.4,0.8205]
[1748040427426,0.7548,2531.7,2530.6,0.8205]
[1748040427628,3.95086996,2531.1,2530.8,0.8205]
[1748040427829,1.5935802,2532.1,2531.2,3.95062035]
[1748040428155,3.94886029,2532.4,2531.5,0.8205]
[1748040428326,1.25646414,2532.5,2531.7,0.8205]
[1748040428532,3.94960306,2531.9,2531.8,42.424]
[1748040428949,3.94960306,2531.9,2531.8,14.214]
[1748040429151,3.94946458,2532.0,2531.8,42.424]
[1748040429152,3.94950271,2532.0,2531.8,42.424]
[1748040429315,3.94960306,2531.9,2531.8,42.424]
[1748040429933,3.949507,2532.0,2531.8,42.424]
[1748040430130,3.94929417,2532.1,2531.8,46.37399309]
[1748040430321,1.98067662,2532.3,2531.9,8.0]
[1748040430517,3.9492911,2532.1,2532.0,0.8205]
[1748040430816,3.94960306,2531.9,2531.8,14.214]
[1748040431019,3.94960306,2531.9,2531.8,30.576]
[1748040431464,4.70322287,2532.7,2531.8,31.3965]
[1748040431635,3.94889591,2532.4,2531.9,0.7752]
[1748040431844,3.94886222,2532.4,2532.1,0.7752]
[1748040432035,0.05,2532.9,2532.2,11.843]
[1748040432237,3.9486246,2532.6,2532.3,16.362]
[1748040432437,0.05,2532.9,2532.3,16.362]
[1748040432438,0.05,2532.9,2532.4,8.28717954]
[1748040432638,0.05,2532.9,2532.5,8.7752]
[1748040432845,0.05,2532.9,2532.7,0.7752]
[1748040433178,3.94866732,2532.5,2532.2,0.7752]
[1748040433323,0.05,2532.9,2532.3,16.359]
[1748040433524,3.99805356,2532.9,2532.5,0.7752]
[1748040433763,0.05,2532.9,2532.5,12.6152]
[1748040434069,3.9492911,2532.1,2532.0,14.9842]
[1748040434375,0.05,2532.9,2532.0,31.3432]
[1748040434528,0.05,2532.9,2532.3,0.7752]
[1748040434857,3.94835896,2532.7,2532.5,0.7752]
[1748040435033,3.94835896,2532.7,2532.6,16.359]
[1748040435557,0.05,2532.9,2532.7,0.7752]
[1748040435857,3.99810563,2532.9,2532.8,28.195]
[1748040436061,0.05,2532.9,2532.8,31.09202]
[1748040436364,3.99804374,2532.9,2532.8,31.09202]
[1748040436554,3.94819962,2532.8,2532.7,0.7752]
[1748040436735,0.05,2532.9,2532.7,17.1302]
[1748040436941,3.94819962,2532.8,2532.7,17.1302]
[1748040437166,3.94819962,2532.8,2532.7,0.7752]
[1748040437330,3.94819962,2532.8,2532.7,17.1302]
[1748040437651,3.94819962,2532.8,2532.7,31.86502]
[1748040437848,3.94819962,2532.8,2532.7,28.9682]
[1748040438063,3.94866732,2532.5,2532.4,0.7966]
[1748040438235,3.94897918,2532.3,2532.2,16.355]
[1748040440170,4.72767918,2532.3,2532.2,16.355]
[1748040440355,5.5953306,2532.3,2532.2,16.355]
[1748040443267,3.94897918,2532.3,2532.2,16.355]
[1748040444039,3.9492911,2532.1,2532.0,14.209]
[1748040444243,4.7279911,2532.1,2532.0,30.849]
[1748040446560,4.7279911,2532.1,2532.0,14.209]
[1748040448571,12.7279911,2532.1,2532.0,14.209]
[1748040448870,14.79060353,2532.1,2532.0,14.209]
[1748040449878,3.94960306,2531.9,2531.8,16.64]
[1748040450375,11.94960306,2531.9,2531.8,16.64]
[1748040450541,3.95053924,2531.3,2531.2,30.846]
[1748040452338,3.95053924,2531.3,2530.7,0.7966]
[1748040452544,3.95147587,2530.7,2530.6,16.641]
[1748040452975,3.94985333,2531.8,2530.7,0.7874]
[1748040453174,3.95019051,2531.6,2531.1,0.7874]
[1748040453376,3.9498457,2531.8,2531.2,28.478]
[1748040453586,3.9498486,2531.8,2531.3,14.9924]
[1748040453746,3.65696904,2532.9,2531.4,3.94999309]
[1748040453747,3.94963837,2531.9,2531.4,3.94999309]
[1748040454077,3.94976013,2531.8,2531.5,0.7874]
[1748040454373,3.9500711,2531.6,2531.5,0.7874]
[1748040454577,3.95069532,2531.2,2531.1,0.7874]
[1748040454750,3.95116361,2530.9,2530.8,16.643]
[1748040458083,3.94991507,2531.7,2530.8,17.3957]
[1748040458283,3.95115136,2531.0,2530.8,17.3957]
[1748040458640,3.95088629,2531.1,2530.8,17.3957]
[1748040458879,3.95088629,2531.1,2530.9,2.92357]
[1748040459997,3.95053817,2531.4,2530.9,2.92357]
[1748040460148,3.95053817,2531.4,2531.0,0.7527]
[1748040460344,3.95055433,2531.3,2531.0,0.7527]
[1748040460549,3.95045325,2531.4,2531.0,0.7527]
[1748040460763,3.95045325,2531.4,2531.1,0.367627]
[1748040461086,3.95054038,2531.3,2531.1,0.367627]
[1748040462471,3.94984667,2531.8,2531.1,0.367627]
[1748040462670,3.95053279,2531.4,2531.1,0.367627]
[1748040462871,3.95058985,2531.3,2531.1,0.367627]
[1748040463509,3.95056181,2531.3,2531.1,0.367627]
[1748040466271,3.95069532,2531.2,2531.1,0.367627]
[1748040466774,3.95060304,2531.3,2531.1,0.367627]
[1748040466971,3.95069532,2531.2,2531.1,0.367627]
[1748040467177,3.95069532,2531.2,2531.1,17.011627]
[1748040467378,3.9506063,2531.3,2531.0,0.7527]
[1748040467593,3.95131974,2530.8,2530.7,0.822]
[1748040467915,3.95131974,2530.8,2530.7,17.466]
[1748040468370,3.9510476,2531.0,2530.7,17.466]
[1748040468716,3.95095893,2531.1,2530.7,17.466]
[1748040468896,3.9511198,2531.0,2530.7,17.466]
[1748040469100,3.9511198,2531.0,2530.7,19.2126]
[1748040469312,3.9511821,2530.9,2530.7,19.2126]
[1748040469690,4.73267495,2531.5,2530.7,19.2126]
[1748040469892,3.95101688,2531.0,2530.7,19.2126]
[1748040470114,3.95093301,2531.1,2530.7,19.2126]
[1748040470413,3.95093301,2531.1,2530.8,1.92126]
[1748040471419,3.95070219,2531.2,2530.8,1.92126]
[1748040471576,3.95071221,2531.2,2530.8,1.92126]
[1748040472177,3.9510614,2531.0,2530.8,1.92126]
[1748040472378,3.95091648,2531.1,2530.9,28.485]
[1748040472607,3.95091648,2531.1,2531.0,16.645]
[1748040472987,3.95068249,2531.3,2531.0,16.645]
[1748040473204,3.95073475,2531.2,2531.0,16.645]
[1748040473402,3.9508514,2531.1,2531.0,16.645]
[1748040473601,3.95131974,2530.8,2530.7,0.822]
[1748040473802,3.95124707,2530.9,2530.7,29.17]
[1748040474119,3.95124707,2530.9,2530.7,32.087]
[1748040474478,3.95131974,2530.8,2530.7,0.822]
[1748040474720,4.74374435,2530.4,2530.2,0.61608694]
[1748040475017,3.95210054,2530.3,2530.2,0.61608694]
[1748040475189,3.95210054,2530.3,2530.2,17.12508694]
[1748040475541,3.95210054,2530.3,2530.2,16.509]
[1748040476283,5.21686548,2530.3,2530.2,16.509]
[1748040476695,3.95210054,2530.3,2530.2,16.509]
[1748040476899,3.95210054,2530.3,2530.1,0.05]
[1748040477103,3.95225673,2530.2,2530.1,0.05]
[1748040477302,3.95225673,2530.2,2530.1,16.559]
[1748040477702,4.75855673,2530.2,2530.1,16.559]
[1748040477909,6.02481689,2530.2,2530.1,16.559]
[1748040478319,6.02481689,2530.2,2530.1,0.05]
[1748040478514,9.637509,2530.2,2530.1,0.05]
[1748040478900,17.637509,2530.2,2530.1,0.05]
[1748040479249,3.95381938,2529.2,2529.1,0.05]
[1748040479400,16.37281149,2529.2,2529.1,0.05]
[1748040480043,4.76011938,2529.2,2529.1,0.05]
[1748040480197,4.76011938,2529.2,2529.1,16.561]
[1748040480584,3.95375497,2529.3,2529.1,16.561]
[1748040480746,3.95375497,2529.3,2529.2,1.6561]
[1748040480747,3.95367276,2529.3,2529.2,1.6561]
[1748040481192,3.95348825,2529.5,2529.2,2.4289]
[1748040481394,0.7827,2531.1,2529.2,2.4289]
[1748040481594,7.56354351,2531.1,2529.4,0.8331]
[1748040481909,3.95220811,2530.3,2529.7,0.4331]
[1748040482219,3.95116361,2530.9,2529.8,30.731]
[1748040482420,3.9527254,2529.9,2529.8,30.731]
[1748040482619,3.9527254,2529.9,2529.8,32.05275212]
[1748040482797,3.95225673,2530.2,2529.8,32.05275212]
[1748040482997,3.95238968,2530.2,2529.8,32.05275212]
[1748040483393,3.9527254,2529.9,2529.8,32.05275212]
[1748040483630,3.9527254,2529.9,2529.8,15.53675212]
[1748040483839,3.9527254,2529.9,2529.8,32.05275212]
[1748040484021,3.9527254,2529.9,2529.8,30.731]
[1748040484613,4.7354254,2529.9,2529.8,16.516]
[1748040485821,3.95381938,2529.2,2529.1,0.05]
[1748040486024,3.95381938,2529.2,2529.1,16.566]
[1748040486235,3.95381938,2529.2,2529.1,0.05]
[1748040486540,3.95381938,2529.2,2529.1,16.566]
[1748040487113,4.82283853,2529.2,2529.1,0.05]
[1748040487939,3.95381938,2529.2,2529.1,0.05]
[1748040488242,3.95367895,2529.3,2529.1,0.05]
[1748040488399,0.8148,2530.2,2529.1,0.05]
[1748040488603,3.95223591,2530.3,2529.3,3.95364744]
[1748040488925,0.8148,2530.6,2529.7,0.7666]
[1748040488926,3.95178818,2530.5,2529.7,0.7666]
[1748040489110,3.95267057,2530.0,2529.8,16.518]
[1748040489318,3.9527254,2529.9,2529.8,16.518]
[1748040490958,0.8148,2530.6,2529.8,16.518]
[1748040491282,3.95192565,2530.5,2529.9,6.37105015]
[1748040491557,4.7556044,2530.9,2530.2,3.95223186]
[1748040491558,3.95153194,2530.7,2530.2,3.95223186]
[1748040491762,3.95067292,2531.3,2530.7,3.95138046]
[1748040491958,3.95039951,2531.4,2530.8,16.518]
[1748040492113,3.95039951,2531.4,2530.4,0.7666]
[1748040492114,0.8277,2531.9,2530.4,0.7666]
[1748040492643,3.95125735,2530.9,2530.5,16.518]
[1748040492837,3.95117589,2530.9,2530.5,16.518]
[1748040493057,3.95147587,2530.7,2530.6,1.72846]
[1748040493270,3.9500711,2531.6,2530.4,0.7666]
[1748040493562,3.95147587,2530.7,2530.6,16.516]
[1748040494239,3.95133262,2530.8,2530.4,0.7666]
[1748040494440,3.95178818,2530.5,2530.4,0.7666]
[1748040494654,3.95178818,2530.5,2530.4,17.2826]
[1748040495655,3.95137132,2530.8,2530.4,17.2826]
[1748040495868,3.95115545,2531.0,2530.4,21.23439914]
[1748040496153,3.95036006,2531.5,2530.5,2.16294861]
[1748040496332,3.95117878,2530.9,2530.5,2.12343991]
[1748040496527,3.95095242,2531.1,2530.4,21.23445888]
[1748040496744,3.95124806,2530.9,2530.4,17.2826]
[1748040498015,0.7777,2531.7,2530.4,17.2826]
[1748040498217,3.95241294,2530.1,2530.0,14.9836]
[1748040498481,3.95241294,2530.1,2530.0,30.732]
[1748040498768,0.7705,2531.0,2530.0,33.8052]
[1748040498922,3.95195312,2530.4,2530.1,0.7666]
[1748040499428,3.95210054,2530.3,2530.2,16.513]
[1748040501058,0.7705,2531.0,2530.2,16.513]
[1748040501272,3.95165648,2530.6,2530.3,2.4179]
[1748040501468,3.95194435,2530.4,2530.3,2.4179]
[1748040502434,3.95194435,2530.4,2530.3,0.7666]
[1748040503601,3.95210054,2530.3,2530.2,16.513]
[1748040504289,3.95144149,2530.8,2530.2,16.513]
[1748040504445,3.95210054,2530.3,2530.2,16.513]
[1748040505482,0.8265,2531.7,2530.3,8.0]
[1748040505687,3.95028149,2531.5,2530.5,3.95171197]
[1748040505893,3.95178818,2530.5,2530.4,2.4513]
[1748040506064,3.95194435,2530.4,2530.3,0.751]
[1748040506270,3.95210054,2530.3,2530.2,16.513]
[1748040506464,0.7703,2530.2,2528.9,0.7666]
[1748040506669,3.95350676,2529.4,2529.3,16.846]
[1748040507089,3.95350676,2529.4,2529.3,17.17604491]
[1748040507392,3.95350676,2529.4,2529.3,17.62932681]
[1748040507795,3.95350676,2529.4,2529.3,0.33004491]
[1748040508095,4.72380676,2529.4,2529.3,0.33004491]
[1748040508465,12.72380676,2529.4,2529.3,0.33004491]
[1748040508659,4.72411938,2529.2,2529.1,0.05]
[1748040508856,16.33850449,2529.2,2529.1,0.05]
[1748040509192,18.36772258,2529.2,2529.1,0.05]
[1748040509779,14.75333747,2529.2,2529.1,0.05]
[1748040509989,6.75333747,2529.2,2529.1,0.05]
[1748040510181,4.72411938,2529.2,2529.1,0.05]
[1748040511508,3.95381938,2529.2,2529.1,0.05]
[1748040512722,3.95381938,2529.2,2529.1,14.268]
[1748040512884,0.59789916,2529.2,2529.1,14.268]
[1748040513288,0.59789916,2529.2,2529.1,18.98857572]
[1748040513491,0.59789916,2529.2,2529.1,21.28284611]
[1748040513792,0.59789916,2529.2,2529.1,29.83284611]
[1748040513977,0.33631828,2529.2,2529.1,33.44723122]
[1748040514718,1.98067662,2530.6,2529.7,3.95294161]
[1748040514918,3.95317771,2529.7,2529.3,0.7666]
[1748040515122,3.95330408,2529.6,2529.4,16.853]
[1748040515425,3.95335046,2529.5,2529.4,16.853]
[1748040515721,3.95381938,2529.2,2529.1,14.268]
[1748040515911,3.95381938,2529.2,2529.1,31.121]
[1748040516107,3.95381938,2529.2,2529.1,31.45107101]
[1748040518244,3.95381938,2529.2,2529.1,31.121]
[1748040518939,3.95381938,2529.2,2529.1,0.05]
[1748040519132,3.95381938,2529.2,2529.1,16.903]
[1748040519332,4.72711938,2529.2,2529.1,0.05]
[1748040519505,4.72711938,2529.2,2529.1,16.904]
[1748040519710,3.95381938,2529.2,2529.1,16.904]
[1748040520243,3.95381938,2529.2,2529.1,18.5944]
[1748040520442,0.7733,2529.6,2529.1,18.5944]
[1748040520644,3.95352329,2529.4,2529.1,19.3448]
[1748040520843,3.95364449,2529.4,2529.2,1.93448]
[1748040521217,3.95366306,2529.3,2529.2,1.93448]
[1748040521408,0.7733,2530.0,2529.2,16.854]
[1748040521613,0.7733,2530.0,2529.3,16.854]
[1748040521957,3.95350676,2529.4,2529.3,16.854]
[1748040522147,3.9534391,2529.5,2529.3,16.854]
[1748040522321,0.7733,2530.0,2529.1,0.05]
[1748040522519,3.95335046,2529.5,2529.4,16.854]